bitfinex/quotes_ETHUSD_20241124
["timestamp","ask_amount","ask_price","bid_price","bid_amount"]
[1732488747279,0.90159967,3341.7,3341.3,0.89784]
[1732488747469,0.27832717,3341.6,3341.3,1.154874]
[1732488747669,3.79948,3342.1,3341.3,0.257034]
[1732488747971,0.27836102,3342.0,3341.8,0.89771]
[1732488748171,0.90159967,3342.3,3341.9,0.260218]
[1732488748388,0.7235261,3342.2,3341.8,0.89771]
[1732488748586,0.27827927,3342.1,3341.8,0.89771]
[1732488748815,0.27827927,3342.0,3341.8,0.89771]
[1732488749046,0.90159967,3342.3,3341.8,0.89771]
[1732488749251,0.27828313,3342.2,3341.8,0.89771]
[1732488749545,0.27828313,3342.1,3341.8,0.89771]
[1732488749741,0.90159967,3342.3,3341.8,0.89771]
[1732488749904,0.2781169,3342.2,3341.8,0.89771]
[1732488750105,0.2781169,3342.1,3341.8,0.89771]
[1732488750307,0.46392838,3342.8,3341.8,0.89771]
[1732488750308,0.7655,3342.7,3342.1,0.8123]
[1732488750516,0.72290912,3342.6,3342.5,0.8123]
[1732488750713,0.27804197,3342.6,3342.5,1.70983]
[1732488750946,0.27806128,3342.6,3342.5,1.70983]
[1732488751143,0.4449116,3343.1,3342.9,0.89742]
[1732488751348,0.44446416,3343.3,3342.9,0.89742]
[1732488751527,0.27779822,3343.2,3343.0,1.67318]
[1732488751722,0.44446892,3343.5,3343.0,1.67318]
[1732488752028,0.72226114,3343.4,3343.0,0.7758]
[1732488752237,0.27779222,3343.3,3343.0,0.7758]
[1732488752433,0.44446892,3343.5,3343.0,0.7758]
[1732488752676,0.2775412,3343.4,3343.0,0.7758]
[1732488752949,0.2775412,3343.3,3343.0,0.7758]
[1732488753145,2.99088,3343.5,3343.0,0.7758]
[1732488753311,0.27735172,3343.4,3343.0,0.7758]
[1732488753643,2.99088,3343.5,3343.0,0.7758]
[1732488753844,0.2773442,3343.4,3343.0,0.7758]
[1732488754050,2.99088,3343.5,3343.0,0.7758]
[1732488754245,0.2773436,3343.4,3343.0,0.7758]
[1732488754547,0.2773436,3343.4,3343.1,0.0553613]
[1732488755048,2.99088,3343.5,3343.0,0.7758]
[1732488755546,4.72530967,3343.7,3343.1,0.0553613]
[1732488755724,0.27704151,3343.6,3343.0,0.7758]
[1732488756054,0.27704151,3343.6,3343.0,1.67319]
[1732488756248,1.73459967,3343.7,3343.0,1.67319]
[1732488756450,2.99079,3343.6,3343.1,0.0553613]
[1732488756960,2.99079,3343.6,3343.0,1.67319]
[1732488757162,2.99079,3343.6,3343.1,0.0553613]
[1732488757333,2.99079,3343.6,3343.0,1.67319]
[1732488757647,2.99079,3343.6,3343.1,0.05467567]
[1732488758147,2.99079,3343.6,3343.0,1.67319]
[1732488758349,2.99079,3343.6,3343.1,0.05467567]
[1732488758737,0.90159967,3343.7,3343.1,0.95203567]
[1732488759346,3.89230967,3343.7,3343.1,0.95203567]
[1732488761963,0.90159967,3343.7,3343.2,0.89733]
[1732488762149,0.90159967,3343.7,3343.3,0.05433518]
[1732488762517,0.8245,3343.9,3343.3,0.3335496]
[1732488762824,0.90159967,3343.9,3343.4,0.7638]
[1732488763329,0.90159967,3343.9,3343.5,0.05433518]
[1732488766671,0.90159967,3343.9,3343.5,0.95159518]
[1732488768862,3.89185967,3344.2,3343.6,1.69832]
[1732488769063,3.89185967,3344.2,3343.7,0.29391151]
[1732488769239,3.89185967,3344.2,3343.7,0.34759734]
[1732488770350,1.73099967,3344.3,3343.7,1.24478734]
[1732488770546,0.90159967,3344.3,3343.9,0.8011]
[1732488770748,0.90159967,3344.3,3344.0,0.05366792]
[1732488770949,2.99009,3344.4,3343.9,0.8011]
[1732488771263,3.0,3344.5,3344.0,0.259546]
[1732488771663,3.0,3344.5,3344.1,0.05356496]
[1732488772043,5.98999,3344.5,3344.2,0.7991]
[1732488772253,2.98999,3344.5,3344.2,0.7991]
[1732488773774,2.98972,3344.8,3344.2,0.97171301]
[1732488774079,0.8265,3345.0,3344.2,0.97171301]
[1732488774080,4.71768967,3345.0,3344.3,0.95060496]
[1732488774371,3.2664329,3344.9,3344.4,0.2819408]
[1732488774574,2.98962,3344.9,3344.4,0.2819408]
[1732488774789,0.27680686,3344.8,3344.4,0.2819408]
[1732488775207,2.98962,3344.9,3344.5,0.05345306]
[1732488775550,2.98962,3344.9,3344.4,0.2819408]
[1732488775756,0.27688493,3344.8,3344.4,0.2819408]
[1732488775940,0.27688493,3344.8,3344.5,0.25126114]
[1732488776140,2.98962,3344.9,3344.5,0.25126114]
[1732488776478,0.27698356,3344.8,3344.5,0.19780808]
[1732488776775,0.27698356,3344.8,3344.6,0.81675306]
[1732488776983,3.17569093,3345.5,3344.8,0.7633]
[1732488777137,0.27703466,3345.4,3344.9,0.02989275]
[1732488777342,2.98914,3345.5,3345.0,0.7633]
[1732488777534,2.98914,3345.5,3345.1,0.0832594]
[1732488777782,2.98893,3345.7,3345.1,0.0832594]
[1732488777783,5.9779,3345.7,3345.1,0.0832594]
[1732488777975,3.26613396,3345.6,3345.1,0.0832594]
[1732488778141,0.27712396,3345.5,3345.1,0.0832594]
[1732488778480,2.98901,3345.6,3345.1,0.25760034]
[1732488778881,2.98901,3345.6,3345.1,0.20423232]
[1732488779442,0.2770492,3345.5,3345.1,0.20423232]
[1732488779645,2.98901,3345.6,3345.1,0.20423232]
[1732488780277,2.98893,3345.7,3345.1,0.17434094]
[1732488780480,0.27721699,3345.6,3345.2,0.18344909]
[1732488780675,2.98893,3345.7,3345.2,0.23616816]
[1732488780907,2.98888,3345.8,3345.3,0.7611]
[1732488781175,2.98874,3345.9,3345.3,0.7611]
[1732488781176,0.27722329,3345.7,3345.4,0.17106191]
[1732488781339,2.98874,3345.9,3345.5,0.05271907]
[1732488781538,0.27723443,3345.8,3345.4,0.17106191]
[1732488781779,0.27723443,3345.7,3345.4,0.17106191]
[1732488781956,2.98883,3345.8,3345.5,0.05271907]
[1732488782278,0.27710281,3345.7,3345.4,0.17106191]
[1732488782482,2.98874,3345.9,3345.4,0.17106191]
[1732488782639,0.27701971,3345.8,3345.5,0.05271907]
[1732488782844,0.27701971,3345.8,3345.4,0.17106191]
[1732488783039,3.26583971,3345.8,3345.4,0.17106191]
[1732488783270,2.98882,3345.8,3345.5,0.18289619]
[1732488790788,4.69895967,3346.1,3345.5,0.18289619]
[1732488790990,2.98873,3345.9,3345.3,1.65786]
[1732488791207,2.98873,3345.9,3345.4,0.05242827]
[1732488791373,2.98873,3345.9,3345.5,0.17102883]
[1732488791801,2.98873,3345.9,3345.6,0.05242827]
[1732488792591,0.8224,3346.9,3346.1,0.89656]
[1732488792797,0.27684872,3346.7,3346.3,0.8291]
[1732488793068,2.98798,3346.8,3346.3,0.8291]
[1732488793295,0.27689658,3346.7,3346.3,0.8291]
[1732488793572,0.27689658,3346.7,3346.4,0.05211066]
[1732488794414,2.98798,3346.8,3346.3,0.8291]
[1732488794611,0.27674239,3346.7,3346.3,0.8291]
[1732488794781,3.81056,3346.6,3345.9,0.89661]
[1732488795114,2.98816,3346.6,3346.0,0.05211066]
[1732488795411,2.98816,3346.6,3346.0,0.32254769]
[1732488795790,2.98819,3346.5,3346.0,0.32254769]
[1732488796101,3.88961967,3346.7,3346.0,0.32254769]
[1732488796102,2.98812,3346.6,3346.0,0.32254769]
[1732488796273,2.98836,3346.4,3346.0,0.32254769]
[1732488796480,0.90159967,3346.1,3346.0,0.05211066]
[1732488796714,3.89014967,3346.1,3346.0,0.05211066]
[1732488797007,2.98876,3345.9,3345.5,0.7739]
[1732488797220,2.98876,3345.9,3345.5,0.940967]
[1732488797415,2.98876,3345.9,3345.6,0.04910653]
[1732488799618,2.98883,3345.8,3345.6,0.04910653]
[1732488800291,2.98891,3345.7,3345.6,0.04910653]
[1732488800684,2.98909,3345.5,3345.2,0.7591]
[1732488801112,2.98909,3345.5,3345.3,0.04626473]
[1732488801617,2.98909,3345.5,3345.4,0.04626473]
[1732488801982,2.98891,3345.7,3345.2,0.7591]
[1732488802330,2.98861,3346.1,3345.4,0.89674]
[1732488802499,0.7213528,3346.0,3345.5,0.02988715]
[1732488802696,0.27744338,3345.9,3345.5,0.92660715]
[1732488803020,2.98861,3346.1,3345.6,0.04626473]
[1732488803223,0.27746609,3346.0,3345.7,0.7689]
[1732488803409,0.27746609,3345.9,3345.7,0.7689]
[1732488803605,5.98853,3346.2,3345.7,0.7689]
[1732488803808,0.72180137,3346.1,3345.7,0.7689]
[1732488803998,0.83,3346.3,3345.7,0.7689]
[1732488803999,0.27761591,3346.0,3345.8,0.89664]
[1732488804198,0.27761591,3345.9,3345.8,0.89664]
[1732488804611,0.27761591,3345.9,3345.7,1.66556]
[1732488804920,3.0,3346.2,3345.8,0.04626473]
[1732488805124,0.27775057,3346.1,3345.8,0.04626473]
[1732488805286,0.27775057,3346.0,3345.5,1.93004772]
[1732488805488,0.44460999,3346.1,3346.0,0.7751]
[1732488805682,0.27788441,3346.1,3345.8,0.7751]
[1732488806002,3.0,3346.2,3345.8,0.7751]
[1732488806189,0.27787398,3346.1,3345.8,0.7751]
[1732488806526,0.27787398,3346.0,3345.8,0.7751]
[1732488806710,0.27787398,3345.9,3345.8,0.7751]
[1732488807620,3.0,3346.2,3345.8,0.7751]
[1732488807824,0.27807322,3346.1,3345.8,0.7751]
[1732488808123,0.27807322,3346.0,3345.8,0.7751]
[1732488808324,0.27807322,3345.9,3345.8,0.7751]
[1732488810120,3.0,3346.2,3345.8,0.7751]
[1732488810313,0.72307906,3346.1,3345.8,0.7751]
[1732488810513,0.27810725,3346.0,3345.8,0.7751]
[1732488810717,0.27810725,3345.9,3345.8,0.7751]
[1732488811024,3.0,3346.4,3345.9,0.8966]
[1732488811236,0.72320177,3346.3,3345.9,0.89661]
[1732488811405,0.44504724,3346.5,3346.3,0.89649]
[1732488811610,0.27817063,3346.4,3346.3,0.89649]
[1732488813518,0.27809457,3346.4,3346.2,0.89653]
[1732488813711,0.44495131,3346.7,3346.2,0.89651]
[1732488813890,0.72303547,3346.6,3346.1,0.89654]
[1732488814088,0.27809056,3346.5,3346.2,0.89653]
[1732488814319,0.27809056,3346.4,3346.2,0.89653]
[1732488814527,3.0,3346.7,3346.2,0.89653]
[1732488814728,0.27807596,3346.6,3346.1,0.89654]
[1732488815033,0.27807596,3346.5,3346.2,0.89653]
[1732488815338,3.0,3346.7,3346.3,0.89651]
[1732488815539,0.27811397,3346.6,3346.3,0.94081364]
[1732488815694,0.27811397,3346.5,3346.3,0.94081364]
[1732488815895,0.44497953,3346.7,3346.3,0.94081364]
[1732488816124,0.27811295,3346.6,3346.3,0.94081364]
[1732488816433,0.27811295,3346.5,3346.3,0.94081364]
[1732488816631,3.0,3346.9,3346.3,0.94081364]
[1732488816791,0.72309583,3346.8,3346.3,0.94081364]
[1732488816986,0.27811378,3346.7,3346.3,0.94081364]
[1732488817228,0.27812508,3346.6,3346.3,0.94081364]
[1732488817397,0.27812508,3346.5,3346.3,0.94081364]
[1732488817602,3.0,3346.9,3346.3,0.94081364]
[1732488817905,0.72319528,3346.8,3346.3,0.89651]
[1732488818106,0.27815203,3346.7,3346.3,0.89651]
[1732488818399,0.27815203,3346.6,3346.4,0.04430364]
[1732488818598,0.27815203,3346.5,3346.3,1.1822305]
[1732488818802,5.98784,3346.9,3346.4,0.25214501]
[1732488819028,0.72315948,3346.8,3346.3,0.89651]
[1732488819227,3.27813826,3346.7,3346.1,1.79308]
[1732488819414,0.27813826,3346.6,3346.4,0.04426796]
[1732488819619,0.27813826,3346.5,3346.2,0.89652]
[1732488819919,0.27810948,3346.4,3346.2,1.066612]
[1732488820270,3.0,3346.7,3346.3,0.04426796]
[1732488820389,0.72315922,3346.6,3346.3,0.04426796]
[1732488820589,0.27814281,3346.5,3346.3,0.04426796]
[1732488820788,0.27815225,3346.4,3346.3,0.32545396]
[1732488820989,3.0,3346.7,3346.3,0.32545396]
[1732488821197,0.27814849,3346.6,3346.3,0.32545396]
[1732488821391,0.27814849,3346.5,3346.3,0.32545396]
[1732488821710,0.27814849,3346.4,3346.3,1.11775396]
[1732488822605,0.44531542,3346.7,3346.3,1.11775396]
[1732488822801,0.27831828,3346.6,3346.4,0.02987945]
[1732488823135,0.44531387,3346.8,3346.5,1.14487014]
[1732488823424,0.27831627,3346.7,3346.5,1.14487014]
[1732488823625,3.0,3346.9,3346.6,0.19371701]
[1732488823938,0.27831104,3346.8,3346.6,1.09013701]
[1732488824157,0.44531693,3347.1,3346.7,1.12287849]
[1732488824357,0.72355378,3347.0,3346.8,0.8085]
[1732488824517,2.98749,3347.3,3346.8,0.8085]
[1732488824719,0.72356499,3347.2,3346.8,0.8085]
[1732488824933,0.72356499,3347.1,3346.8,1.09427044]
[1732488825120,0.27829454,3347.0,3346.8,1.09427044]
[1732488825458,0.278239,3346.9,3346.8,1.09427044]
[1732488825769,0.278239,3346.9,3346.8,0.8085]
[1732488828465,0.27820775,3346.9,3346.8,0.8085]
[1732488828763,2.98695,3347.9,3346.8,0.90159967]
[1732488828934,0.72355463,3347.8,3347.4,0.799]
[1732488829256,0.27829024,3347.7,3347.6,0.799]
[1732488829838,0.27829024,3347.7,3347.6,0.84267484]
[1732488830370,3.44498112,3348.0,3347.6,0.84267484]
[1732488830526,0.27811796,3347.9,3347.6,0.84267484]
[1732488830726,0.27811796,3347.8,3347.6,0.799]
[1732488830938,3.0,3348.0,3347.6,0.799]
[1732488831137,0.2781334,3347.9,3347.7,0.04367484]
[1732488831341,0.2781334,3347.8,3347.6,0.968521]
[1732488831662,3.0,3348.0,3347.7,0.04367484]
[1732488831869,0.27810361,3347.9,3347.7,0.04367484]
[1732488832042,0.27810361,3347.9,3347.6,1.864671]
[1732488832247,0.27810361,3347.8,3347.7,0.1864731]
[1732488832433,0.27802782,3347.8,3347.7,0.04272982]
[1732488832639,0.44496467,3348.1,3347.6,1.864671]
[1732488832965,0.27806953,3348.0,3347.6,1.864671]
[1732488833140,0.27806953,3347.9,3347.7,0.04272982]
[1732488833343,0.44496467,3348.1,3347.7,0.04272982]
[1732488833542,0.27801196,3348.0,3347.7,0.28036108]
[1732488833759,2.9866,3348.3,3347.8,0.7689]
[1732488833940,0.27803965,3348.2,3347.8,0.81162982]
[1732488834141,2.9866,3348.3,3347.9,0.21576419]
[1732488834569,2.98644,3348.5,3347.9,1.11184419]
[1732488834729,2.98624,3348.7,3347.9,1.11184419]
[1732488834730,2.98624,3348.7,3348.1,0.7784]
[1732488834929,3.26431306,3348.6,3348.2,0.02986291]
[1732488835139,0.27797306,3348.5,3348.2,0.02986291]
[1732488835373,2.98624,3348.7,3348.3,0.04272982]
[1732488835529,0.27788577,3348.6,3348.3,0.04272982]
[1732488835734,0.27788577,3348.5,3348.2,0.22347621]
[1732488835973,0.46314326,3349.3,3348.5,0.771]
[1732488836130,0.756,3349.5,3348.5,0.771]
[1732488836131,2.98597,3349.0,3348.5,0.771]
[1732488836330,2.98585,3349.2,3348.5,0.771]
[1732488836556,3.26353538,3349.1,3348.6,0.20915751]
[1732488836745,2.98588,3349.1,3348.6,0.166695]
[1732488836960,0.27765641,3349.0,3348.6,0.166695]
[1732488837171,2.98585,3349.2,3348.7,0.1833645]
[1732488837635,2.98576,3349.3,3348.7,1.0792245]
[1732488837836,0.27749639,3349.2,3348.7,1.0792245]
[1732488838152,0.27749639,3349.1,3348.8,0.22748496]
[1732488838463,2.98576,3349.3,3348.8,0.22748496]
[1732488838681,0.2773932,3349.2,3348.8,0.04246251]
[1732488838832,2.98614,3348.8,3348.5,0.771]
[1732488839046,2.98614,3348.8,3348.5,0.937698]
[1732488839246,2.98614,3348.8,3348.6,0.04246251]
[1732488839556,2.98614,3348.8,3348.5,0.937698]
[1732488839749,2.98625,3348.7,3348.5,0.166698]
[1732488840084,2.98625,3348.7,3348.6,0.04246251]
[1732488840785,2.98625,3348.7,3348.6,0.04235115]
[1732488841197,2.98579,3349.2,3348.4,0.771]
[1732488841348,0.27730628,3349.1,3348.4,0.771]
[1732488841663,2.98596,3349.0,3348.4,1.66693]
[1732488842056,2.98596,3349.0,3348.5,0.04235115]
[1732488842255,2.98579,3349.2,3348.6,0.17092812]
[1732488842561,2.98579,3349.2,3348.8,0.8197]
[1732488843287,2.98589,3349.1,3348.8,0.8197]
[1732488843789,2.98589,3349.1,3348.9,0.04235115]
[1732488843994,2.98589,3349.1,3348.8,0.8197]
[1732488844173,2.98579,3349.2,3348.9,0.04235115]
[1732488844174,2.98578,3349.2,3348.9,0.04235115]
[1732488844348,2.98578,3349.2,3348.9,0.2211302]
[1732488846348,2.98563,3349.4,3348.9,0.2211302]
[1732488846557,2.98563,3349.4,3348.9,0.17877905]
[1732488847189,3.0,3349.4,3349.0,0.81285618]
[1732488847398,3.0,3349.4,3349.1,0.18874352]
[1732488848800,0.1521396,3349.7,3349.2,0.04183889]
[1732488848801,6.1375396,3349.7,3349.2,0.04183889]
[1732488849118,6.1375396,3349.7,3349.2,0.20881415]
[1732488849599,6.1375396,3349.7,3349.3,0.04183889]
[1732488850695,6.1375396,3349.7,3349.2,0.20881415]
[1732488851239,2.98563,3349.4,3349.2,0.20881415]
[1732488851433,2.98563,3349.4,3349.0,0.783]
[1732488853939,0.7724,3352.8,3350.8,0.8017]
[1732488854171,1.89548372,3352.6,3350.9,0.02983466]
[1732488854299,0.7724,3352.1,3351.3,0.89515]
[1732488854633,3.75567,3352.1,3351.4,0.0406425]
[1732488854800,2.98348,3351.8,3350.9,0.17268747]
[1732488854998,2.98348,3351.8,3350.8,3.8017]
[1732488854999,2.98356,3351.7,3351.0,0.0406425]
[1732488855299,2.98335,3352.0,3350.9,0.89527]
[1732488855533,2.98335,3352.0,3351.1,0.0406425]
[1732488855704,3.281735,3351.9,3351.0,0.89525]
[1732488855912,2.9835,3351.8,3351.2,0.0406425]
[1732488856108,0.29835,3351.7,3350.8,1.69699]
[1732488856442,0.29835,3351.7,3350.9,0.89527]
[1732488856603,0.29835,3351.7,3351.0,0.0406425]
[1732488857333,3.0,3352.0,3351.2,0.89518]
[1732488857542,3.0,3352.2,3351.2,0.89518]
[1732488857699,0.675543,3352.1,3351.3,0.8319]
[1732488857934,3.0,3352.1,3351.3,0.8319]
[1732488858097,3.0,3352.2,3351.4,0.89514]
[1732488858638,0.7724,3352.4,3351.5,0.0406425]
[1732488858936,0.7724,3352.4,3351.5,0.89509]
[1732488859137,0.7724,3352.4,3351.3,1.75690234]
[1732488859138,0.375518,3352.3,3351.6,0.96556421]
[1732488859340,0.7724,3352.4,3351.7,0.89506]
[1732488859839,3.75534,3352.4,3351.8,0.03928775]
[1732488860048,3.375533,3352.3,3351.5,0.8951]
[1732488860215,2.98259,3352.8,3352.0,0.7685]
[1732488860398,0.7563,3352.9,3352.0,0.7685]
[1732488860594,2.98259,3352.8,3352.0,0.7685]
[1732488860836,2.98267,3352.7,3352.1,0.03699983]
[1732488861347,3.37168296,3352.8,3352.1,0.03699983]
[1732488861645,2.98269,3352.7,3351.8,1.66354]
[1732488861811,2.98285,3352.5,3351.9,0.03699983]
[1732488862029,2.98285,3352.5,3351.8,0.7685]
[1732488862206,2.98267,3352.7,3351.8,0.934861]
[1732488862411,2.98276,3352.6,3351.9,0.03699983]
[1732488862728,2.98286,3352.5,3351.8,0.7685]
[1732488863605,2.98286,3352.5,3351.8,0.934859]
[1732488863806,2.98286,3352.5,3351.9,0.03699983]
[1732488864017,2.98286,3352.5,3351.8,0.7685]
[1732488864232,2.98268,3352.7,3351.8,0.7685]
[1732488864233,2.98268,3352.7,3351.8,1.66351]
[1732488864427,2.98268,3352.7,3351.9,0.89501]
[1732488864631,3.70894826,3352.7,3351.8,0.7685]
[1732488864943,2.98291,3352.5,3351.9,0.03581713]
[1732488866119,2.98268,3352.7,3352.0,0.7685]
[1732488866305,3.36878879,3352.7,3352.1,0.02982848]
[1732488866645,2.98276,3352.6,3352.2,0.03581713]
[1732488866944,2.98276,3352.6,3352.0,0.7685]
[1732488867138,3.69352788,3352.6,3352.0,0.7685]
[1732488867318,3.69352788,3352.6,3352.1,0.03581713]
[1732488867513,0.71076788,3352.6,3352.1,0.03581713]
[1732488867817,0.38610879,3352.7,3352.0,0.7685]
[1732488868005,0.38610879,3352.7,3352.1,0.03467618]
[1732488868204,3.36884879,3352.7,3352.0,0.7685]
[1732488868540,3.36884879,3352.7,3352.1,0.03348228]
[1732488868945,2.98258,3352.8,3352.2,0.7604]
[1732488869248,2.98275,3352.7,3352.2,0.7604]
[1732488870248,3.1345996,3353.0,3352.3,0.02982688]
[1732488870456,0.1521396,3353.0,3352.5,0.7604]
[1732488870641,0.1521396,3353.0,3352.6,0.06330574]
[1732488870815,0.1521396,3353.0,3352.5,0.79022309]
[1732488871430,0.1521396,3353.0,3352.5,0.7604]
[1732488871658,0.1521396,3353.0,3352.5,1.65524]
[1732488871972,0.1521396,3353.0,3352.6,0.03348228]
[1732488872314,3.1345396,3353.0,3352.5,0.7604]
[1732488872516,2.98249,3352.9,3352.7,0.03348228]
[1732488872716,2.98249,3352.9,3352.5,0.7604]
[1732488872977,0.1521396,3353.0,3352.5,0.7604]
[1732488873157,3.1345496,3353.0,3352.6,0.0323662]
[1732488873362,3.1345496,3353.0,3352.5,0.7604]
[1732488873956,2.98251,3352.9,3351.9,0.8126]
[1732488874254,2.98291,3352.5,3352.0,0.0322418]
[1732488874440,2.98283,3352.6,3352.0,0.0322418]
[1732488874441,2.98295,3352.4,3352.0,0.0322418]
[1732488874616,2.98283,3352.6,3351.9,0.8126]
[1732488875620,2.98285,3352.5,3352.0,0.02982846]
[1732488876017,2.98285,3352.5,3352.1,0.03013343]
[1732488876327,2.98285,3352.5,3351.9,0.8126]
[1732488876665,2.98285,3352.5,3352.0,0.03013343]
[1732488877220,2.98267,3352.7,3352.0,0.03013343]
[1732488877421,2.98267,3352.7,3351.9,0.84242696]
[1732488877746,2.98267,3352.7,3352.0,0.02918772]
[1732488878761,2.98278,3352.6,3352.0,0.02918772]
[1732488878922,2.98285,3352.5,3352.0,0.02918772]
[1732488879116,2.98285,3352.5,3351.9,0.8126]
[1732488881439,0.39077696,3352.9,3352.0,0.02982777]
[1732488881640,0.1521396,3353.0,3352.6,1.19307]
[1732488881960,0.1521396,3353.0,3352.8,0.7765]
[1732488882141,0.1521396,3353.0,3352.9,0.0298219]
[1732488882943,0.1521396,3353.0,3352.8,0.7765]
[1732488884259,5.89691188,3353.3,3352.8,0.7765]
[1732488885565,2.91477188,3353.3,3352.8,0.7765]
[1732488886664,3.0,3353.5,3352.8,0.97643918]
[1732488886960,0.27804628,3353.4,3352.8,2.16945918]
[1732488887163,0.27804628,3353.4,3353.0,1.19295]
[1732488887368,2.98175,3353.8,3353.1,2.01611838]
[1732488887572,0.27813124,3353.7,3353.1,2.01611838]
[1732488887728,0.27813124,3353.6,3353.1,2.01611838]
[1732488887929,2.98178,3353.7,3353.1,0.82321838]
[1732488888225,0.27812329,3353.6,3353.1,0.7934]
[1732488888468,2.98178,3353.7,3353.1,0.7934]
[1732488888642,3.0,3353.7,3353.1,0.7934]
[1732488888982,3.0,3353.7,3353.1,1.9863]
[1732488889128,3.0,3353.9,3353.1,1.11430778]
[1732488889333,0.2781568,3353.8,3353.2,0.8001]
[1732488889524,5.98161,3353.9,3353.2,1.99298]
[1732488889525,0.2781568,3353.7,3353.2,1.99298]
[1732488889724,5.98161,3353.9,3353.2,1.99298]
[1732488889725,0.2781568,3353.6,3353.2,1.99298]
[1732488889931,5.98161,3353.9,3353.2,1.99298]
[1732488890242,2.9818,3353.7,3353.2,0.8001]
[1732488890432,6.579771,3353.9,3353.2,0.8001]
[1732488890633,2.98189,3353.6,3353.2,0.8001]
[1732488891241,5.98163,3353.9,3353.2,0.8001]
[1732488891442,2.98179,3353.7,3353.2,0.8001]
[1732488891747,0.2782258,3353.6,3353.4,0.817]
[1732488892065,5.98166,3353.9,3353.4,0.817]
[1732488892247,0.27819343,3353.8,3353.4,0.817]
[1732488892457,0.27819343,3353.7,3353.4,0.817]
[1732488892970,2.9817,3353.8,3353.4,0.817]
[1732488893268,0.27816092,3353.7,3353.4,0.817]
[1732488894042,2.9817,3353.8,3353.4,0.817]
[1732488894257,0.2781456,3353.7,3353.4,0.817]
[1732488894441,3.7836,3353.9,3353.4,0.817]
[1732488894631,2.98178,3353.7,3353.4,0.817]
[1732488895865,2.98124,3354.4,3353.6,1.19274]
[1732488896081,0.72314924,3354.3,3353.6,1.19274]
[1732488896372,0.27813432,3354.2,3353.7,0.817]
[1732488896673,0.27813432,3354.1,3353.7,0.817]
[1732488896876,0.27813432,3354.0,3353.7,0.817]
[1732488897038,0.27813432,3353.9,3353.7,0.817]
[1732488897233,0.44501492,3354.2,3353.7,0.817]
[1732488897565,0.27810866,3354.1,3353.7,0.817]
[1732488897745,0.27810866,3354.0,3353.7,0.817]
[1732488897948,0.27810891,3353.9,3353.7,0.817]
[1732488898129,0.44497426,3354.2,3353.7,0.817]
[1732488898334,0.27809604,3354.1,3353.7,0.817]
[1732488898573,0.44497426,3354.2,3353.7,0.817]
[1732488898574,0.27809604,3354.0,3353.7,0.817]
[1732488898753,2.98135,3354.2,3353.7,0.817]
[1732488899074,0.72304833,3354.1,3353.7,0.817]
[1732488899286,0.27809551,3354.0,3353.7,0.817]
[1732488899593,0.27809551,3353.9,3353.7,0.817]
[1732488899796,0.27808036,3354.0,3353.7,0.817]
[1732488900085,2.98135,3354.2,3353.7,0.817]
[1732488900293,0.27807882,3354.1,3353.7,2.210678]
[1732488900507,5.98125,3354.3,3353.7,2.0097]
[1732488900794,0.72307331,3354.2,3353.7,2.0097]
[1732488900989,0.27810512,3354.1,3353.7,0.817]
[1732488901159,0.27810512,3354.0,3353.7,0.817]
[1732488901362,0.27810512,3354.0,3353.3,1.19284]
[1732488901363,2.98169,3353.8,3353.3,0.817]
[1732488901705,2.98188,3353.6,3353.3,0.817]
[1732488902063,2.98164,3353.9,3353.3,0.817]
[1732488902295,0.27810558,3353.8,3353.3,0.817]
[1732488902568,0.27810558,3353.7,3353.3,0.817]
[1732488902765,2.98151,3354.0,3353.3,0.817]
[1732488902986,6.2597307,3353.9,3353.3,0.817]
[1732488903297,0.27809003,3353.8,3353.3,0.817]
[1732488903497,5.98165,3353.9,3353.3,0.817]
[1732488903796,0.27806441,3353.8,3353.3,0.817]
[1732488903995,2.98188,3353.6,3353.3,0.817]
[1732488904491,2.98175,3353.8,3353.3,0.817]
[1732488904691,0.27808054,3353.7,3353.3,0.817]
[1732488904902,5.96351,3353.8,3353.3,0.817]
[1732488905193,3.2598607,3353.7,3353.3,0.817]
[1732488905390,2.98178,3353.7,3353.3,0.817]
[1732488905690,0.7637,3353.6,3352.6,0.02981868]
[1732488905850,2.98229,3353.2,3352.5,1.19313]
[1732488906052,2.98229,3353.2,3352.4,1.19316]
[1732488906276,0.7637,3353.6,3352.4,0.31814425]
[1732488906277,2.98242,3353.0,3352.4,0.31814425]
[1732488906480,2.98249,3352.9,3352.2,1.95841]
[1732488906689,2.98249,3352.9,3352.3,0.195841]
[1732488908774,2.98274,3352.7,3352.2,0.7652]
[1732488908969,2.98292,3352.5,3352.2,0.7652]
[1732488909410,2.98268,3352.7,3351.8,1.19336]
[1732488909411,2.98268,3352.7,3352.0,0.8124]
[1732488909716,2.98268,3352.7,3352.0,2.00571]
[1732488909883,2.98268,3352.7,3352.1,0.319907]
[1732488910708,3.0,3352.4,3351.4,0.7934]
[1732488910912,2.98347,3351.8,3351.4,0.7934]
[1732488911478,3.76409,3352.0,3351.4,0.7934]
[1732488911678,0.7808,3352.0,3351.4,0.7934]
[1732488911882,2.98337,3352.0,3351.4,0.7934]
[1732488912174,2.98317,3352.2,3351.2,1.22342626]
[1732488912483,2.98317,3352.2,3351.1,0.7695]
[1732488912484,2.98391,3351.3,3351.1,0.7695]
[1732488912683,0.8284,3351.7,3351.1,0.7695]
[1732488912684,2.98374,3351.5,3351.1,0.7695]
[1732488912883,0.8284,3352.0,3351.1,0.7695]
[1732488913109,2.98313,3352.2,3351.3,0.8237]
[1732488913320,2.98313,3352.2,3351.5,2.01717]
[1732488913618,2.98313,3352.2,3351.6,0.02983209]
[1732488913911,2.98313,3352.2,3351.5,0.8237]
[1732488914075,2.98313,3352.2,3351.6,1.19345]
[1732488914415,2.98313,3352.2,3351.6,1.42499711]
[1732488914585,2.98294,3352.4,3351.7,1.19341]
[1732488915413,3.0,3352.4,3351.6,0.201715]
[1732488915585,2.98306,3352.3,3351.7,0.3412415]
[1732488915776,2.98306,3352.3,3351.7,1.5346515]
[1732488916118,3.0,3352.4,3351.7,1.5346515]